Cogmind - Beta 11.1 @@@ ROGUE MODE // 2022.06.10 @ 12:42:44 Player: Exp. Geonium Core Result: Self-destructed Performance ------------- Evolutions (1) 500 Regions Visited (4) 800 Robots Destroyed (25) 125 Value Destroyed (822) 822 Prototype IDs (23) 460 Alien Tech Used (0) 0 Bonus (291) 291 TOTAL SCORE: 2998 Bonus ------- Aligned with FarCom 300 Friendly Fire -9 Cogmind --------- Core Integrity 238/400 Matter 266/300 Energy 100/100 System Corruption 4% Temperature Cool (0) Movement Walking (120) Location -9/Exiles Parts ------- > --- POWER (1) -------- (None) > --- PROPULSION (2) --- Aluminum Leg > --- UTILITY (4) ------ Small Storage Unit Hardened Light Armor Plating > --- WEAPON (2) ------- (None) > --- INVENTORY (8) ---- Aluminum Leg Light Armor Plating Light Armor Plating Hacking Suite Peak State ------------ > --- POWER ------------ Light Ion Engine > --- PROPULSION ------- Aluminum Leg Aluminum Leg > --- UTILITY ---------- Small Storage Unit Structural Scanner Hardened Light Armor Plating Hardened Light Armor Plating > --- WEAPON ----------- AWS/Gauss > --- INVENTORY -------- Aluminum Leg Light Armor Plating Light Armor Plating Hacking Suite Heavy EM Pulse Gun Deploy-a-Sentry Deploy-a-Sentry [Rating: 27] Favorites ----------- Power Light Ion Engine Engine Light Ion Engine Propulsion Aluminum Leg Treads Light Treads Leg Aluminum Leg Utility Hardened Light Armor Plating Device Structural Scanner Storage Small Storage Unit Protection Hardened Light Armor Plating Weapon Heavy EM Pulse Gun Energy Gun Heavy EM Pulse Gun Ballistic Gun Light Assault Rifle Build | -11 -10 -9 -9 -9 ------- Run | Scr Mat Mat Min Exi Slots Evolved 2 | . . 2 . . Power . | . . . . . Propulsion . | . . . . . Utility 2 | . . 2 . . Weapon . | . . . . . Parts Attached 27 | . 17 5 3 2 Power 2 | . 2 . . . Engine 2 | . 2 . . . Core . | . . . . . Reactor . | . . . . . Propulsion 10 | . 6 2 2 . Treads 6 | . 4 2 . . Leg 4 | . 2 . 2 . Wheel . | . . . . . Hover . | . . . . . Flight . | . . . . . Utility 4 | . 2 2 . . Device 2 | . 2 . . . Storage . | . . . . . Processor . | . . . . . Hackware . | . . . . . Protection 2 | . . 2 . . Artifact . | . . . . . Weapon 11 | . 7 1 1 2 Energy Gun 4 | . 2 1 . 1 Energy Cannon . | . . . . . Ballistic Gun 7 | . 5 . 1 1 Ballistic Cannon . | . . . . . Launcher . | . . . . . Special Weapon . | . . . . . Impact Weapon . | . . . . . Slashing Weapon . | . . . . . Piercing Weapon . | . . . . . Special Melee Weapon . | . . . . . Unidentified Prototypes . | . . . . . Corrupted Parts 1 | . . . 1 . System Corruption 3 | . . . 3 . Parts Lost 10 | . 1 2 2 5 Power 1 | . . . . 1 Propulsion 3 | . . . 2 1 Utility 2 | . . . . 2 Weapon 4 | . 1 2 . 1 Highest Loss Streak 5 | . 1 2 2 5 To Critical Strikes . | . . . . . Average Slot Usage (%) 86 | . 93 83 86 82 Engine 11 | . 12 11 11 10 Treads 8 | . 16 12 13 . Leg 14 | . 10 9 6 22 Device 11 | . 11 11 11 11 Storage 11 | . 14 11 11 11 Protection 14 | . . 12 22 22 Energy Gun 3 | . 1 16 7 . Ballistic Gun 10 | . 25 . 3 5 Naked Turns . | . . . . . Heaviest Build 29 | 10 15 22 22 29 Greatest Support 40 | 20 40 40 40 20 Greatest Overweight (x) 7 | . 2 . 7 1 Average Overweight (x) . | . . . . . Largest Inventory Capacity 8 | . 8 8 8 8 Average Capacity 8 | . 8 8 8 8 Most Carried 8 | . 8 8 8 8 Average Carried 7 | . 7 7 8 6 Final Capacity 8 | 8 8 8 8 8 Final Carried 8 | 6 8 8 8 4 Class Distribution -------------------- 100% | Mutant Dominant Class ---------------- Mutant | -10/Materials Mutant | -9/Materials Mutant | -9/Mines Mutant | -9/Exiles Resources | -11 -10 -9 -9 -9 ----------- Run | Scr Mat Mat Min Exi Matter Collected 635 | 186 336 80 33 . Remotely . | . . . . . Salvage Created 1011 | . 501 407 103 . Parts 70 | . 37 25 8 . Haulers Intercepted . | . . . . . Recyclers Shooed 1 | . . 1 . . Parts Field Recycled . | . . . . . Retrieved Matter . | . . . . . Parts Self-Destructed . | . . . . . Prevented . | . . . . . Kills | -11 -10 -9 -9 -9 ------- Run | Scr Mat Mat Min Exi Combat Hostiles Destroyed 20 | . 10 8 2 . Guns 16 | . 10 4 2 . AOE 3 | . . 3 . . Classes Destroyed 5 | . 4 1 . . Recycler 1 | . 1 . . . Operator 1 | . 1 . . . Watcher 3 | . 2 1 . . Grunt 17 | . 10 5 2 . Sentry 3 | . . 3 . . Best Kill Streak 6 | . 4 6 1 . Combat Bots Only 5 | . 3 5 1 . Max Kills in Single Turn 3 | . 1 3 1 . Gunslinging . | . . . . . Exploded 2 | . . 2 . . Melee . | . . . . . Uniques/NPCs Destroyed 1 | . . . . 1 EX-HEX (-9/Exiles) Combat | -11 -10 -9 -9 -9 -------- Run | Scr Mat Mat Min Exi Damage Taken 1696 | . 494 396 194 612 Core 240 | . 78 . 27 135 Absorbed by Shields . | . . . . . Core Remaining (%) 84 | 100 68 . . . Volleys Fired 91 | . 51 15 14 11 Largest 2 | . 2 2 1 1 Hottest 90 | . 40 90 45 45 Shots Fired 148 | . 99 24 14 11 Gun 148 | . 99 24 14 11 Cannon . | . . . . . Launcher . | . . . . . Special . | . . . . . Kinetic 100 | . 99 . 1 . Thermal . | . . . . . Explosive . | . . . . . Electromagnetic 48 | . . 24 13 11 Robot Hit Streak 19 | . 18 19 4 4 Robot Miss Streak 4 | . 4 2 2 1 Penetration Max . | . . . . . Secondary Targets 1 | . 1 . . . Max Gunslinging Chain 1 | . 1 . . . Shots Hit Robots 109 | . 76 17 9 7 Core Hits 45 | . 28 12 4 1 Critical Kills . | . . . . . Critical Parts Destroyed . | . . . . . Critical Strikes 2 | . . 1 . 1 Corrupt 2 | . . 1 . 1 Melee Attacks . | . . . . . Impact . | . . . . . Slashing . | . . . . . Piercing . | . . . . . Sneak Attacks . | . . . . . Combat Hostiles . | . . . . . Follow-up Attacks . | . . . . . Damage Inflicted 1476 | . 834 475 154 13 Guns 1243 | . 829 261 145 8 Cannons . | . . . . . Explosions 219 | . . 214 . 5 Melee . | . . . . . Ramming 14 | . 5 . 9 . Kinetic 845 | . 829 . 16 . Thermal 214 | . . 214 . . Explosive . | . . . . . Electromagnetic 403 | . . 261 129 13 Impact . | . . . . . Slashing . | . . . . . Piercing . | . . . . . Highest Corruption 4 | . . . 3 4 Average Corruption 3 | . . . 3 3 Corruption Purged . | . . . . . Corruption Blocked . | . . . . . Effects 19 | . . . 2 17 Message Errors 7 | . . . 1 6 Matter Fused 5 | . . . . 5 Heat Flow Errors 1 | . . . . 1 Energy Discharges 3 | . . . 1 2 Data Loss (minor) 1 | . . . . 1 Data Loss (major) 2 | . . . . 2 Overload Shots . | . . . . . Overflow Damage . | . . . . . Projectiles . | . . . . . Explosions . | . . . . . Melee . | . . . . . Knockbacks . | . . . . . Impact . | . . . . . Kinetic . | . . . . . Secondary . | . . . . . Self-Inflicted Damage 66 | . . 66 . . Shots 2 | . . 2 . . Rammed 4 | . 1 . 3 . Targets Rammed 4 | . 1 . 3 . Kicked . | . . . . . Crushed . | . . . . . Highest Temperature 335 | . 25 335 288 180 Average Temperature 108 | . 7 136 159 79 Received Heat Transfer 570 | . 300 162 108 . Siege Activations . | . . . . . Robots Corrupted 1 | . . 1 . . Combat Hostiles 1 | . . 1 . . Parts Fried . | . . . . . Impact Corruptions . | . . . . . Robots Melted . | . . . . . Combat Hostiles . | . . . . . Parts Melted 1 | . . 1 . . Heat Transferred 250 | . . 250 . . Parts Sabotaged . | . . . . . Parts Stolen . | . . . . . Parts Stripped . | . . . . . Power Chain Reactions 3 | . . 2 . 1 Missiles Intercepted . | . . . . . Alert | -11 -10 -9 -9 -9 ------- Run | Scr Mat Mat Min Exi Peak Influence 305 | . 262 305 163 . Initial 118 | . . 53 118 . Average 143 | . 133 192 132 . Maximum Alert Level 1 | . 1 1 . . Low Security (%) 72 | . 61 55 100 . Level 1 27 | . 38 44 . . Level 2 . | . . . . . Level 3 . | . . . . . Level 4 . | . . . . . Level 5 . | . . . . . High Security . | . . . . . Max Security . | . . . . . Squads Dispatched 4 | . 3 1 . . Investigation 2 | . 2 . . . Extermination . | . . . . . Reinforcement 2 | . 1 1 . . Assault . | . . . . . Garrison . | . . . . . Intercept . | . . . . . Searches Triggered . | . . . . . Construction Impeded . | . . . . . Haulers Reinforced . | . . . . . Active Scanning Responses . | . . . . . Cargo Convoy Interrupts . | . . . . . Stealth | -11 -10 -9 -9 -9 --------- Run | Scr Mat Mat Min Exi Distress Signals 3 | . 1 2 . . Communications Jammed . | . . . . . Distress Signals . | . . . . . Times Spotted 38 | . 21 12 3 2 Peak Tracking Total 13 | . 4 9 2 13 Tactical Retreats 3 | . 1 . 1 1 Traps | -11 -10 -9 -9 -9 ------- Run | Scr Mat Mat Min Exi Traps Triggered 6 | . 6 . . . Indirectly . | . . . . . Trap Hack Attempts . | . . . . . Triggered . | . . . . . Disarmed . | . . . . . Reprogrammed . | . . . . . Reused . | . . . . . Traps Extracted . | . . . . . Installed . | . . . . . Triggered . | . . . . . Machines | -11 -10 -9 -9 -9 ---------- Run | Scr Mat Mat Min Exi Machines Disabled . | . . . . . Max in Single Turn . | . . . . . Machines Sabotaged . | . . . . . Garrisons Compromised . | . . . . . Overloaded Fab Kills . | . . . . . Hacking | -11 -10 -9 -9 -9 --------- Run | Scr Mat Mat Min Exi Machines Accessed 4 | . 2 1 . 1 Terminals 3 | . 2 1 . . Fabricators . | . . . . . Repair Stations . | . . . . . Recycling Units . | . . . . . Scanalyzers . | . . . . . Garrison Access . | . . . . . Total Hacks 8 | . 6 1 . 1 Successful 3 | . 1 1 . 1 Failed 4 | . 4 . . . Catastrophic . | . . . . . Database Lockouts 1 | . 1 . . . Manual 4 | . 2 1 . 1 Terminals 7 | . 6 1 . . Fabricators . | . . . . . Repair Stations . | . . . . . Recycling Units . | . . . . . Scanalyzers . | . . . . . Garrison Access . | . . . . . Terminal Hacks 3 | . 1 1 . 1 Robot Analysis 1 | . 1 . . . Branch Access Points 1 | . . 1 . . EX-Prototype ID Bank 1 | . . . . 1 Fabricator Hacks . | . . . . . Repair Station Hacks . | . . . . . Recycling Unit Hacks . | . . . . . Scanalyzer . | . . . . . Garrison Access Hacks . | . . . . . Unauthorized Hacks . | . . . . . Terminals . | . . . . . Fabricators . | . . . . . Repair Stations . | . . . . . Recycling Units . | . . . . . Scanalyzers . | . . . . . Garrison Access . | . . . . . Data Cores Recovered . | . . . . . Used . | . . . . . Hacking Detections 3 | . 2 1 . . Full Trace Events 1 | . 1 . . . Feedback Events . | . . . . . Feedback Blocked . | . . . . . Robot Schematics Acquired . | . . . . . Robots Built . | . . . . . Authchips . | . . . . . Time . | . . . . . Total Robot Build Rating . | . . . . . Part Schematics Acquired . | . . . . . Parts Built . | . . . . . Authchips . | . . . . . Time . | . . . . . Total Part Build Rating . | . . . . . Parts Repaired . | . . . . . Time . | . . . . . Parts Recycled . | . . . . . Recycled Matter . | . . . . . Retrieved Matter . | . . . . . Retrieved Components . | . . . . . Parts Scanalyzed . | . . . . . Part Schematics Acquired . | . . . . . Parts Damaged . | . . . . . Bothacking | -11 -10 -9 -9 -9 ------------ Run | Scr Mat Mat Min Exi Used RIF Installer . | . . . . . Robots Hacked . | . . . . . Non-combat . | . . . . . Combat . | . . . . . Robot Hacks Applied . | . . . . . Relay Couplers Released . | . . . . . Fabnet Peak Effective % . | . . . . . Robots Rewired . | . . . . . Allies Hacked . | . . . . . Hacks Repelled . | . . . . . Allies | -11 -10 -9 -9 -9 -------- Run | Scr Mat Mat Min Exi Total Allies . | . . . . . Largest Group . | . . . . . Highest-Rated Group . | . . . . . Highest-Rated Ally . | . . . . . Total Orders . | . . . . . Ally Attacks 16 | . . . . 16 Total Damage 808 | . . . . 808 Kills 4 | . . . . 4 Allies Corrupted . | . . . . . Allies Melted . | . . . . . Turrets Deployed 3 | . . . . 3 Intel | -11 -10 -9 -9 -9 ------- Run | Scr Mat Mat Min Exi Robot Analysis Total 1 | . 1 . . . Derelict Logs Recovered . | . . . . . Drone Launches . | . . . . . Drone Recoveries . | . . . . . Exploration | -11 -10 -9 -9 -9 ------------- Run | Scr Mat Mat Min Exi Turns Passed 1786 | . 546 194 343 703 Spaces Moved 998 | 1 262 101 179 455 Core 3 | . 2 . 1 . Treads 295 | . 120 47 128 . Legs 700 | 1 140 54 50 455 Wheels . | . . . . . Hover . | . . . . . Flight . | . . . . . Fastest Speed 120 | 120 120 120 160 120 Average Speed 148 | 120 138 138 171 146 Slowest Speed 400 | 120 160 160 400 190 Overloaded Moves . | . . . . . Propulsion Burnouts . | . . . . . Robots Hopped . | . . . . . Cave-ins Triggered . | . . . . . Exploration Rate (%) 33 | 2 40 24 42 61 Regions Visited 4 Branch Regions 2 Pre-discovered Areas . | . . . . . Known Exits Taken 1 | . . 1 . . Unknown Exits Taken 3 | 1 1 . 1 . Scrap Searched 1 | . . . 1 . Spaces Dug . | . . . . . Terrain Destroyed 7 | . . 7 . . Melee . | . . . . . Projectile . | . . . . . AOE 7 | . . 7 . . Terrain Rammed . | . . . . . Walls Destroyed . | . . . . . Machines Disabled . | . . . . . Actions | -11 -10 -9 -9 -9 --------- Run | Scr Mat Mat Min Exi Total 1165 | . 351 131 198 485 Wait 13 | . 9 4 . . Move 994 | . 261 100 178 455 Hop . | . . . . . Pick Up 19 | . 8 5 . 6 Fast Attach 13 | . 10 . 2 1 Attach 8 | . 4 3 . 1 Detach . | . . . . . Swap 6 | . 3 2 1 . Drop 17 | . 4 2 . 11 Fire 91 | . 51 15 14 11 Melee . | . . . . . Ram . | . . . . . Kick . | . . . . . Crush 4 | . 1 . 3 . Escape Stasis . | . . . . . Rewire . | . . . . . Trap . | . . . . . Miscellaneous . | . . . . . Route ------- -11/Scrapyard -10/Materials -9/Materials (discovered 3 exits: *Min x2 / Sto) -9/Mines (discovered 2 exits: [*Mat] / *Exi) -9/Exiles (discovered 1 exit: [*Min]) History --------- Turn | Location | Event 1 | -11/Scrapyard | Discovered new exit (range 0) 1 | -11/Scrapyard | Entered Materials 21 | -10/Materials | Central database locked down 310 | -10/Materials | Build established: Mutant 532 | -10/Materials | Discovered new exit (range 14) 547 | -10/Materials | Entered another Materials area 547 | -9/Materials | Evolved 2 slots: Utility x2 622 | -9/Materials | Identified exit to Mines 622 | -9/Materials | Identified exit to Storage 741 | -9/Materials | Entered Mines 749 | -9/Mines | Discovered new exit (range 9) 932 | -9/Mines | Discovered new exit (range 6) 1077 | -9/Mines | Deemed a non-threat by the Exiles lab entrance 1084 | -9/Mines | Entered Exiles 1115 | -9/Exiles | Discovered new exit (range 15) 1136 | -9/Exiles | Met 8R-AWN 1162 | -9/Exiles | Met EX-HEX 1236 | -9/Exiles | Met EX-DEC 1553 | -9/Exiles | Met EX-BIN 1568 | -9/Exiles | Aligned with FarCom system 1569 | -9/Exiles | Given EX-Vault access code 1599 | -9/Exiles | Opened EX-Vault 1605 | -9/Exiles | Found AWS/Gauss 1616 | -9/Exiles | Found Deploy-a-Sentry 1619 | -9/Exiles | Found Deploy-a-Sentry 1622 | -9/Exiles | Found Deploy-a-Sentry 1663 | -9/Exiles | Warned to stay clear of 0b10 Research branches 1677 | -9/Exiles | Exiles lab attacked by MAIN.C 1736 | -9/Exiles | DAS Turret deployed 1737 | -9/Exiles | DAS Turret deployed 1738 | -9/Exiles | DAS Turret deployed 1740 | -9/Exiles | Attacked by the Exiles 1759 | -9/Exiles | Allies destroyed EX-HEX 1787 | -9/Exiles | Self-destructed Last Messages --------------- 01770_ HV Slug penetrates Wall. 01777_ Penetrated by HV Slug. 01777_ HV Slug penetrates Machine. 01779_ System corrupted: Matter fused (-5). 01780_ Penetrated by HV Slug. 01780_ HV Slug penetrates Machine. 01780_ Machine disabled. 01780_ Penetrated by HV Slug. 01780_ HV Slug penetrates Machine. 01782_ Hrd. Light Armor Plating destroyed. 01782_ Knocked back. 01783_ HV Slug penetrates Machine. 01783_ HV Slug penetrates Wall. 01784_ Aluminum Leg destroyed. 01786_ Penetrated by HV Slug. 01786_ HV Slug penetrates Machine. 01786_ Penetrated by HV Slug. 01786_ HV Slug penetrates Wall. 01786_ Structural Scanner destroyed. 01786_ Critical hit (Blast). Map ----- +----------------------------------------------------+ | ???????????????????????????????????????????????""" | | ?????????????????????????????????????????????##""" | | ?????????????????????????????????????????????##""X | | ?????????????????????????????????????????????##" | | ?????????????????????????????????????????????##" | | ?????????????????????????????????????????????##""" | | ?????????????????????????????????????????????###"# | | ????????????????????????????????????????????? "# | | ?????????????????????????????????????????????????? | | ????????????????????#########????????????????????? | | ??????? #####???????#########????????????????????? | | ??????? #####???????##!!! "##????????????????????? | | ??????? #"???????## "##????????????????????? | | ??????? ?????### "##??????????####??????? | | ??????? ####### ""##??????????####??????? | | ?????" #####" ""##?????????? """##??? | | ?????## ##" ""##?????????#"" """##??? | | ?????### #"" ##???????????#"" ##??? | | ??????##"## ###??????????#"" ##??? | | ?????????##### [[[***###???????????"" "##??? | | ????????????#### = "####????????? ""##??? | | ????????????###" #####????????"" ""????? | | ????????????"""" ############# ####### | | ????????? "### % ############ ####### | | ????????? "####" % """#;;## # #"###"" | | ????????? ##### @ """""" | | ???????? !""""""####?##"# g% "" " " | | ????????###########??#####% | | ????????#########????####### | | ????????????????????????## ### % t | | ??????????????????????????##### % | | ????????????????????????????#### % [ | | ?????????????????????????????####" % % | | ??????????????????????????????###""" | | ??????????????????????????????###" | | ??????????????????????????????##"" "" | | ?????????????????????????????###"""% " # | | ?????????????????????????????##""" """## | | ?????????????????????????????##""" ""## | | ?????????????????????????????##"" % ### | | ???????????????????????????????""" # | | ??????????????????????????????#"" | | ??????????????????????????????##"" | | ??????????????????????????????##"""" | | ??????????????????????????????### % | | ????????????????????????????????#" = % | | ?????????????????????????????????"""" % ! ? | | ?????????????????????????????????"" !!! | | ???????????????????????????????????? !!%!! """ | | ???????????????????????????????????" =%!! ?? | +----------------------------------------------------+ Best States ------------- Heat Dissipation 28 Energy Generation 10 Energy Capacity 125 Matter Stores 300 Matter Capacity 300 Sight Range 16 Terrain Scan Density 10 Armor Coverage 300 Evasion (%) 55 Recoil Reduction 2 Item Schematics ----------------- None Robot Schematics ------------------ None Fabricated ------------ Nothing Alien Tech Used ----------------- None Achievements -------------- None Challenges ------------ None Game ------ Seed ScatterBackupBox Manual? 0 Play Time 00:12:14 Cumulative 228.1 hours Start 2022.06.10 @ 08:20:49 End 2022.06.10 @ 12:42:44 Sessions 3 Manual Loads 0 Difficulty Rogue Special Mode None Game No. 286 Rogue 286 Adventurer 0 Explorer 0 Win Type - Total 11 Types 8/0/2/1/0/0/0/0/0 Lore% 67 Gallery% 84 Achievement% 73 Wizard Run 0 Options --------- ASCII 0 Keyboard 0 Movement Numpad Keybinds 0 Fullscreen 1 Font 18/Terminus Map View 76x50 Tactical HUD 1 Map Filters NONE Filters NONE Steam 1 RUN: 08a63902-5e6a-483c-b7cf-1bae6fa464e9